fUSD/lending_fUSD_20260214
["ID","MTS","AMOUNT","RATE_DAILY","PERIOD"]
[405379903,1771098645954,-773.35,0.00039726,9]
[405379904,1771098645964,-1275.07,0.00039726,9]
[405379905,1771098645975,-1999.0,0.00039726,120]
[405379906,1771098645985,-500.0,0.00039726,9]
[405379907,1771098645996,-1430.59,0.00039726,15]
[405379908,1771098646007,-900.91,0.00039726,9]
[405379909,1771098646017,-500.0,0.00039726,9]
[405379910,1771098646028,-78.55423142,0.00039726,9]
[405379911,1771098646045,-421.44576858,0.00039726,9]
[405379912,1771098646055,-5038.38,0.00039726,9]
[405379913,1771098646065,-500.0,0.00039726,9]
[405379914,1771098646075,-500.0,0.00039726,9]
[405379915,1771098646084,-500.0,0.00039726,9]
[405379916,1771098646094,-249.56465463,0.00039726,9]
[405379917,1771098646103,-500.0,0.00039726,9]
[405379920,1771098646114,-568.05,0.00039726,9]
[405379923,1771098646123,-500.0,0.00039726,9]
[405379925,1771098646132,-500.0,0.00039726,9]
[405379926,1771098646142,-232.34233181,0.00039726,2]
[405379927,1771098646152,-500.0,0.00039726,9]
[405379928,1771098646162,-6904.64,0.00039726,9]
[405379929,1771098646172,-500.0,0.00039726,9]
[405379930,1771098646181,-500.0,0.00039726,9]
[405379931,1771098646191,-500.0,0.00039726,9]
[405379932,1771098646201,-833.33,0.00039726,9]
[405379933,1771098646211,-500.0,0.00039726,15]
[405379934,1771098646220,-500.0,0.00039726,9]
[405379935,1771098646229,-749.76,0.00039726,9]
[405379936,1771098646239,-500.0,0.00039726,9]
[405379937,1771098646249,-802.53784,0.00039815,30]
[405379938,1771098646258,-7526.68874785,0.000399,3]
[405379939,1771098646270,-2559.31125215,0.000399,3]
[405379940,1771098646279,-177.0,0.000399,9]
[405379941,1771098646288,-297.9741985,0.0004,30]
[405379942,1771098646298,-152.0,0.0004,120]
[405379943,1771098646308,-151.0,0.0004,120]
[405379944,1771098646318,-500.0,0.0004,9]
[405379945,1771098646327,-500.0,0.0004,9]
[405379946,1771098646336,-500.0,0.0004,9]
[405379947,1771098646345,-500.0,0.0004,9]
[405379948,1771098646354,-500.0,0.0004,9]
[405379949,1771098646364,-500.0,0.0004,9]
[405379950,1771098646373,-500.0,0.0004,9]
[405379951,1771098646382,-1740.85,0.0004,9]
[405379952,1771098646392,-500.0,0.0004,9]
[405379953,1771098646402,-922.65,0.0004,9]
[405379954,1771098646412,-14.04633341,0.0004,120]
[405379955,1771098646423,-384.88090561,0.0004,120]
[405379961,1771098646793,-1380.53058532,0.00017399,2]
[405379962,1771098646803,-1097.05524,0.00017399,2]
[405379963,1771098646815,-22.41417468,0.00017399,2]
[405379964,1771098646823,-285.0,0.00017485,2]
[405379965,1771098646833,-168.14186492,0.00030706,2]
[405379966,1771098646855,-576.16419486,0.00030706,2]
[405379967,1771098646866,-425.820293,0.00036986,31]
[405379968,1771098646875,-425.820293,0.00036986,31]
[405379969,1771098646885,-425.820293,0.00036986,31]
[405379970,1771098646894,-425.820293,0.00036986,31]
[405379971,1771098646903,-181.16053925,0.00036986,31]
[405379972,1771098646914,-244.65975375,0.00036986,31]
[405379973,1771098646923,-425.820293,0.00036986,31]
[405379974,1771098646933,-1383.16954307,0.00037886,2]
[405379975,1771098647014,-361.22993896,0.00036986,31]
[405379976,1771098647025,-64.59035404,0.00036986,31]
[405379977,1771098647034,-425.820293,0.00036986,31]
[405379978,1771098647043,-425.820293,0.00036986,31]
[405379979,1771098647053,-425.820293,0.00036986,31]
[405379980,1771098647062,-156.99796446,0.00036986,31]
[405379981,1771098647073,-268.82232854,0.00036986,31]
[405379982,1771098647083,-1466.48860784,0.00037886,2]
[405379983,1771098647093,-2211.69,0.00038356,9]
[405379984,1771098647103,-425.820293,0.00038356,120]
[405379985,1771098647112,-425.820293,0.00038356,120]
[405379986,1771098647122,-425.820293,0.00038356,120]
[405379987,1771098647131,-425.820293,0.00038356,120]
[405379988,1771098647140,-425.820293,0.00038356,120]
[405379989,1771098647150,-425.820293,0.00038356,120]
[405379990,1771098647164,-2021.33598741,0.0003863,9]
[405379991,1771098647177,-190.35401259,0.0003863,9]
[405379992,1771098647189,-2211.69,0.00038904,9]
[405379993,1771098647199,-2211.69,0.00039178,9]
[405379994,1771098647209,-300.15035,0.00039442,95]
[405379995,1771098647219,-2211.69,0.00039452,9]
[405379996,1771098647229,-2109.09063743,0.00039726,9]
[405379997,1771098647242,-102.59936257,0.00039726,9]
[405379998,1771098647251,-101.07276098,0.0004,120]
[405379999,1771098647260,-500.0,0.0004,9]
[405380000,1771098647269,-318.07621936,0.0004,9]
[405380001,1771098647278,-500.0,0.0004,9]
[405380002,1771098647288,-500.0,0.0004,9]
[405380003,1771098647297,-500.0,0.0004,9]
[405380004,1771098647308,-500.0,0.0004,9]
[405380005,1771098647318,-500.0,0.0004,9]
[405380006,1771098647328,-686.0,0.0004,9]
[405380007,1771098647337,-344.85228278,0.0004,9]
[405380008,1771098647347,-500.0,0.0004,9]
[405380009,1771098647356,-500.0,0.0004,9]
[405380010,1771098647365,-500.0,0.0004,9]
[405380011,1771098647374,-330.04913111,0.0004,9]
[405380012,1771098647386,-169.95086889,0.0004,9]
[405380013,1771098647395,-500.0,0.0004,9]
[405380014,1771098647405,-167.36863614,0.0004,9]
[405380015,1771098647416,-332.63136386,0.0004,9]
[405380016,1771098647425,-500.0,0.0004,9]
[405380017,1771098647436,-500.0,0.0004,9]
[405380018,1771098647444,-500.0,0.0004,9]
[405380019,1771098647454,-500.0,0.0004,9]
[405380020,1771098647465,-500.0,0.0004,9]
[405380021,1771098647476,-500.0,0.0004,9]
[405380022,1771098647486,-500.0,0.0004,9]
[405380023,1771098647497,-500.0,0.0004,9]
[405380024,1771098647507,-500.0,0.0004,9]
[405380025,1771098647517,-500.0,0.0004,9]
[405380026,1771098647527,-500.0,0.0004,9]
[405380027,1771098647538,-500.0,0.0004,9]
[405380028,1771098647548,-500.0,0.0004,9]
[405380029,1771098647558,-500.0,0.0004,9]
[405380030,1771098647568,-1920.75,0.0004,9]
[405380031,1771098647579,-775.99,0.0004,9]
[405380032,1771098647589,-500.0,0.0004,9]
[405380033,1771098647599,-834.29,0.0004,9]
[405380034,1771098647609,-7114.09,0.0004,9]
[405380035,1771098647619,-500.0,0.0004,9]
[405380036,1771098647631,-500.0,0.0004,9]
[405380037,1771098647642,-500.0,0.0004,9]
[405380038,1771098647651,-500.0,0.0004,9]
[405380039,1771098647661,-500.0,0.0004,9]
[405380040,1771098647671,-500.0,0.0004,9]
[405380041,1771098647682,-500.0,0.0004,9]
[405380042,1771098647693,-500.0,0.0004,9]
[405380043,1771098647702,-500.0,0.0004,9]
[405380044,1771098647711,-500.0,0.0004,9]
[405380045,1771098647721,-500.0,0.0004,9]
[405380046,1771098647734,-573.1,0.0004,9]
[405380047,1771098647744,-500.0,0.0004,9]
[405380048,1771098647754,-4121.16,0.0004,9]
[405380049,1771098647764,-500.0,0.0004,9]
[405380050,1771098647775,-500.0,0.0004,9]
[405380051,1771098647784,-500.0,0.0004,9]
[405380052,1771098647794,-678.82,0.0004,9]
[405380053,1771098647806,-500.0,0.0004,9]
[405380054,1771098647816,-582.26,0.0004,9]
[405380055,1771098647825,-500.0,0.0004,9]
[405380056,1771098647835,-5058.13,0.0004,9]
[405380057,1771098647844,-500.0,0.0004,9]
[405380058,1771098647853,-500.0,0.0004,9]
[405380059,1771098647863,-500.0,0.0004,9]
[405380061,1771098647872,-500.0,0.0004,9]
[405380063,1771098647882,-773.35,0.0004,9]
[405380065,1771098647892,-1275.07,0.0004,9]
[405380067,1771098647901,-500.0,0.0004,9]
[405380069,1771098647911,-1430.59,0.0004,15]
[405380071,1771098647921,-900.91,0.0004,9]
[405380073,1771098647930,-212.83150154,0.0004,9]
[405380074,1771098647940,-500.0,0.0004,9]
[405380076,1771098647950,-5038.38,0.0004,9]
[405380077,1771098647959,-500.0,0.0004,9]
[405380078,1771098647970,-500.0,0.0004,9]
[405380079,1771098647980,-500.0,0.0004,9]
[405380080,1771098647989,-500.0,0.0004,9]
[405380081,1771098647999,-568.05,0.0004,9]
[405380082,1771098648009,-500.0,0.0004,9]
[405380083,1771098648019,-500.0,0.0004,9]
[405380084,1771098648029,-500.0,0.0004,9]
[405380085,1771098648039,-6904.64,0.0004,9]
[405380086,1771098648048,-500.0,0.0004,9]
[405380087,1771098648058,-500.0,0.0004,9]
[405380088,1771098648067,-500.0,0.0004,9]
[405380089,1771098648077,-833.33,0.0004,9]
[405380090,1771098648087,-500.0,0.0004,15]
[405380091,1771098648097,-203.84259627,0.0004,9]
[405380092,1771098648107,-749.76,0.0004,9]
[405380093,1771098648116,-500.0,0.0004,9]
[405380094,1771098648126,-2211.69,0.0004,9]
[405380095,1771098648136,-732.0,0.0004,30]
[405380096,1771098648146,-802.53784,0.00040015,30]
[405380097,1771098648155,-802.53784,0.00040215,30]
[405380098,1771098648166,-500.0,0.00040273,9]
[405380099,1771098648177,-500.0,0.00040273,9]
[405380100,1771098648187,-500.0,0.00040273,9]
[405380101,1771098648197,-500.0,0.00040273,9]
[405380102,1771098648207,-500.0,0.00040273,9]
[405380103,1771098648217,-500.75739607,0.00040273,9]
[405380104,1771098648227,-500.0,0.00040273,9]
[405380105,1771098648236,-1740.85,0.00040273,9]
[405380106,1771098648246,-500.0,0.00040273,9]
[405380107,1771098648256,-922.65,0.00040273,9]
[405380108,1771098648266,-500.0,0.00040273,120]
[405380109,1771098648276,-500.0,0.00040273,9]
[405380110,1771098648286,-500.0,0.00040273,9]
[405380111,1771098648295,-500.0,0.00040273,9]
[405380112,1771098648305,-500.0,0.00040273,9]
[405380113,1771098648315,-500.0,0.00040273,9]
[405380114,1771098648324,-500.0,0.00040273,9]
[405380115,1771098648334,-686.0,0.00040273,9]
[405380116,1771098648344,-500.0,0.00040273,9]
[405380117,1771098648355,-468.24578993,0.00040273,9]
[405380118,1771098648364,-500.0,0.00040273,9]
[405380119,1771098648374,-500.0,0.00040273,9]
[405380120,1771098648383,-500.0,0.00040273,9]
[405380121,1771098648393,-500.0,0.00040273,9]
[405380122,1771098648403,-500.0,0.00040273,9]
[405380123,1771098648412,-500.0,0.00040273,9]
[405380124,1771098648422,-500.0,0.00040273,9]
[405380125,1771098648432,-500.0,0.00040273,9]
[405380126,1771098648442,-500.0,0.00040273,9]
[405380127,1771098648452,-500.0,0.00040273,9]
[405380128,1771098648461,-500.0,0.00040273,9]
[405380129,1771098648470,-500.0,0.00040273,9]
[405380130,1771098648480,-500.0,0.00040273,9]
[405380131,1771098648490,-500.0,0.00040273,9]
[405380132,1771098648500,-500.0,0.00040273,9]
[405380133,1771098648509,-500.0,0.00040273,9]
[405380134,1771098648519,-500.0,0.00040273,9]
[405380135,1771098648529,-500.0,0.00040273,9]
[405380136,1771098648539,-1920.75,0.00040273,9]
[405380137,1771098648549,-775.99,0.00040273,9]
[405380138,1771098648559,-500.0,0.00040273,9]
[405380139,1771098648569,-834.29,0.00040273,9]
[405380140,1771098648579,-7114.09,0.00040273,9]
[405380141,1771098648590,-500.0,0.00040273,9]
[405380142,1771098648599,-500.0,0.00040273,9]
[405380143,1771098648609,-500.0,0.00040273,9]
[405380144,1771098648619,-500.0,0.00040273,9]
[405380145,1771098648629,-500.0,0.00040273,9]
[405380146,1771098648639,-500.0,0.00040273,9]
[405380147,1771098648649,-500.0,0.00040273,9]
[405380148,1771098648658,-500.0,0.00040273,9]
[405380149,1771098648667,-500.0,0.00040273,9]
[405380150,1771098648680,-500.0,0.00040273,9]
[405380151,1771098648691,-500.0,0.00040273,9]
[405380152,1771098648701,-573.1,0.00040273,9]
[405380153,1771098648711,-500.0,0.00040273,9]
[405380154,1771098648721,-4121.16,0.00040273,9]
[405380155,1771098648734,-500.0,0.00040273,9]
[405380156,1771098648744,-500.0,0.00040273,9]
[405380157,1771098648754,-500.0,0.00040273,9]
[405380158,1771098648765,-678.82,0.00040273,9]
[405380159,1771098648775,-500.0,0.00040273,9]
[405380160,1771098648784,-582.26,0.00040273,9]
[405380161,1771098648794,-5058.13,0.00040273,9]
[405380162,1771098648806,-500.0,0.00040273,9]
[405380163,1771098648815,-500.0,0.00040273,9]
[405380164,1771098648824,-500.0,0.00040273,9]
[405380165,1771098648834,-500.0,0.00040273,9]
[405380166,1771098648842,-500.0,0.00040273,9]
[405380167,1771098648852,-773.35,0.00040273,9]
[405380168,1771098648862,-1275.07,0.00040273,9]
[405380169,1771098648871,-500.0,0.00040273,9]
[405380170,1771098648881,-1430.59,0.00040273,15]
[405380171,1771098648891,-900.91,0.00040273,9]
[405380172,1771098648901,-500.0,0.00040273,9]
[405380173,1771098648910,-5038.38,0.00040273,9]
[405380174,1771098648920,-500.0,0.00040273,9]
[405380175,1771098648930,-500.0,0.00040273,9]
[405380176,1771098648939,-500.0,0.00040273,9]
[405380177,1771098648949,-339.38545704,0.00040273,9]
[405380178,1771098648959,-568.05,0.00040273,9]
[405380179,1771098648968,-500.0,0.00040273,9]
[405380180,1771098648978,-500.0,0.00040273,9]
[405380181,1771098648988,-500.0,0.00040273,9]
[405380182,1771098648998,-6904.64,0.00040273,9]
[405380183,1771098649008,-500.0,0.00040273,9]
[405380184,1771098649017,-500.0,0.00040273,9]
[405380185,1771098649027,-500.0,0.00040273,9]
[405380186,1771098649037,-833.33,0.00040273,9]
[405380187,1771098649047,-500.0,0.00040273,15]
[405380188,1771098649056,-749.76,0.00040273,9]
[405380189,1771098649067,-500.0,0.00040273,9]
[405380190,1771098649077,-2211.69,0.00040273,9]
[405380191,1771098649088,-1999.0,0.0004041,120]
[405380192,1771098649098,-802.53784,0.00040415,30]
[405380193,1771098649108,-2849.65815091,0.00040447,15]
[405380194,1771098649118,-44280.08,0.000405,14]
[405380195,1771098649129,-500.0,0.00040547,9]
[405380196,1771098649139,-500.0,0.00040547,9]
[405380197,1771098649149,-500.0,0.00040547,9]
[405380198,1771098649159,-434.9664032,0.00040547,9]
[405380199,1771098649169,-500.0,0.00040547,9]
[405380200,1771098649179,-500.0,0.00040547,9]
[405380201,1771098649189,-1740.85,0.00040547,9]
[405380202,1771098649199,-281.32887601,0.00040547,9]
[405380203,1771098649209,-922.65,0.00040547,9]
[405380204,1771098649218,-500.0,0.00040547,120]
[405380205,1771098649228,-500.0,0.00040547,9]
[405380206,1771098649238,-500.0,0.00040547,9]
[405380207,1771098649248,-500.0,0.00040547,9]
[405380208,1771098649258,-292.00547886,0.00040547,9]
[405380209,1771098649269,-500.0,0.00040547,9]
[405380210,1771098649279,-500.0,0.00040547,9]
[405380211,1771098649295,-686.0,0.00040547,9]
[405380212,1771098649306,-500.0,0.00040547,9]
[405380213,1771098649315,-500.0,0.00040547,9]
[405380214,1771098649325,-500.0,0.00040547,9]
[405380215,1771098649334,-500.0,0.00040547,9]
[405380216,1771098649344,-500.0,0.00040547,9]
[405380217,1771098649353,-500.0,0.00040547,9]
[405380218,1771098649362,-500.0,0.00040547,9]
[405380219,1771098649370,-500.0,0.00040547,9]
[405380220,1771098649377,-500.0,0.00040547,9]
[405380221,1771098649384,-472.39037633,0.00040547,9]
[405380222,1771098649393,-500.0,0.00040547,9]
[405380223,1771098649399,-500.0,0.00040547,9]
[405380224,1771098649408,-531.56361676,0.00040547,9]
[405380225,1771098649419,-500.0,0.00040547,9]
[405380226,1771098649431,-500.0,0.00040547,9]
[405380227,1771098649441,-500.0,0.00040547,9]
[405380228,1771098649451,-500.0,0.00040547,9]
[405380229,1771098649462,-500.0,0.00040547,9]
[405380230,1771098649472,-500.0,0.00040547,9]
[405380231,1771098649482,-1920.75,0.00040547,9]
[405380232,1771098649493,-775.99,0.00040547,9]
[405380233,1771098649503,-500.0,0.00040547,9]
[405380234,1771098649513,-834.29,0.00040547,9]
[405380235,1771098649523,-7114.09,0.00040547,9]
[405380236,1771098649532,-500.0,0.00040547,9]
[405380237,1771098649542,-500.0,0.00040547,9]
[405380238,1771098649553,-500.0,0.00040547,9]
[405380239,1771098649563,-500.0,0.00040547,9]
[405380240,1771098649573,-500.0,0.00040547,9]
[405380241,1771098649584,-500.0,0.00040547,9]
[405380242,1771098649593,-500.0,0.00040547,9]
[405380243,1771098649603,-500.0,0.00040547,9]
[405380244,1771098649613,-500.0,0.00040547,9]
[405380245,1771098649623,-500.0,0.00040547,9]
[405380246,1771098649633,-500.0,0.00040547,9]
[405380247,1771098649643,-573.1,0.00040547,9]
[405380248,1771098649653,-500.0,0.00040547,9]
[405380249,1771098649662,-4121.16,0.00040547,9]
[405380250,1771098649673,-500.0,0.00040547,9]
[405380251,1771098649683,-500.0,0.00040547,9]
[405380252,1771098649693,-500.0,0.00040547,9]
[405380253,1771098649703,-678.82,0.00040547,9]
[405380254,1771098649714,-500.0,0.00040547,9]
[405380255,1771098649726,-582.26,0.00040547,9]
[405380256,1771098649738,-5058.13,0.00040547,9]
[405380257,1771098649749,-500.0,0.00040547,9]
[405380258,1771098649759,-500.0,0.00040547,9]
[405380259,1771098649770,-500.0,0.00040547,9]
[405380260,1771098649779,-500.0,0.00040547,9]
[405380261,1771098649788,-500.0,0.00040547,9]
[405380262,1771098649798,-773.35,0.00040547,9]
[405380263,1771098649808,-1275.07,0.00040547,9]
[405380264,1771098649818,-500.0,0.00040547,9]
[405380265,1771098649828,-1430.59,0.00040547,15]
[405380266,1771098649838,-900.91,0.00040547,9]
[405380267,1771098649848,-500.0,0.00040547,9]
[405380268,1771098649858,-5038.38,0.00040547,9]
[405380269,1771098649868,-500.0,0.00040547,9]
[405380270,1771098649878,-500.0,0.00040547,9]
[405380271,1771098649887,-500.0,0.00040547,9]
[405380272,1771098649897,-568.05,0.00040547,9]
[405380273,1771098649907,-500.0,0.00040547,9]
[405380274,1771098649918,-500.0,0.00040547,9]
[405380275,1771098649928,-500.0,0.00040547,9]
[405380276,1771098649939,-6904.64,0.00040547,9]
[405380277,1771098649951,-500.0,0.00040547,9]
[405380278,1771098649960,-500.0,0.00040547,9]
[405380279,1771098649972,-500.0,0.00040547,9]
[405380280,1771098649983,-833.33,0.00040547,9]
[405380281,1771098649994,-500.0,0.00040547,15]
[405380282,1771098650004,-749.76,0.00040547,9]
[405380283,1771098650212,-500.0,0.00040547,9]
[405380284,1771098650228,-2211.69,0.00040547,9]
[405380285,1771098650238,-499.0,0.0004059,120]
[405380286,1771098650248,-802.53784,0.00040615,30]
[405380287,1771098650258,-250.99,0.00040659,2]
[405380288,1771098650267,-1366.547,0.00040774,59]
[405380289,1771098650278,-152.0,0.000408,120]
[405380290,1771098650288,-802.53784,0.00040815,30]
[405380291,1771098650298,-155.0,0.0004082,120]
[405380292,1771098650308,-500.0,0.00040821,9]
[405380293,1771098650318,-500.0,0.00040821,9]
[405380294,1771098650328,-500.0,0.00040821,9]
[405380295,1771098650337,-500.0,0.00040821,9]
[405380296,1771098650348,-500.0,0.00040821,9]
[405380297,1771098650357,-1740.85,0.00040821,9]
[405380298,1771098650367,-922.65,0.00040821,9]
[405380299,1771098650379,-500.0,0.00040821,120]
[405380300,1771098650389,-500.0,0.00040821,9]
[405380301,1771098650399,-500.0,0.00040821,9]
[405380302,1771098650410,-500.0,0.00040821,9]
[405380303,1771098650420,-500.0,0.00040821,9]
[405380304,1771098650429,-500.0,0.00040821,9]
[405380305,1771098650441,-686.0,0.00040821,9]
[405380306,1771098650450,-242.96315125,0.00040821,9]
[405380307,1771098650459,-500.0,0.00040821,9]
[405380308,1771098650468,-500.0,0.00040821,9]
[405380309,1771098650480,-500.0,0.00040821,9]
[405380310,1771098650490,-500.0,0.00040821,9]
[405380311,1771098650499,-500.0,0.00040821,9]
[405380312,1771098650508,-500.0,0.00040821,9]
[405380313,1771098650518,-500.0,0.00040821,9]
[405380314,1771098650527,-500.0,0.00040821,9]
[405380315,1771098650538,-500.0,0.00040821,9]
[405380316,1771098650548,-500.0,0.00040821,9]
[405380317,1771098650559,-216.05240879,0.00040821,9]
[405380318,1771098650571,-500.0,0.00040821,9]
[405380319,1771098650581,-500.0,0.00040821,9]
[405380320,1771098650591,-500.0,0.00040821,9]
[405380321,1771098650603,-500.0,0.00040821,9]
[405380322,1771098650613,-500.0,0.00040821,9]
[405380323,1771098650625,-1920.75,0.00040821,9]
[405380324,1771098650635,-775.99,0.00040821,9]
[405380325,1771098650645,-500.0,0.00040821,9]
[405380326,1771098650656,-834.29,0.00040821,9]
[405380327,1771098650666,-7114.09,0.00040821,9]
[405380328,1771098650675,-500.0,0.00040821,9]
[405380329,1771098650685,-500.0,0.00040821,9]
[405380330,1771098650694,-500.0,0.00040821,9]
[405380331,1771098650704,-500.0,0.00040821,9]
[405380332,1771098650713,-500.0,0.00040821,9]
[405380333,1771098650724,-500.0,0.00040821,9]
[405380334,1771098650734,-500.0,0.00040821,9]
[405380335,1771098650745,-500.0,0.00040821,9]
[405380336,1771098650755,-500.0,0.00040821,9]
[405380337,1771098650766,-500.0,0.00040821,9]
[405380338,1771098650776,-500.0,0.00040821,9]
[405380339,1771098650786,-573.1,0.00040821,9]
[405380340,1771098650797,-500.0,0.00040821,9]
[405380341,1771098650807,-4121.16,0.00040821,9]
[405380342,1771098650816,-500.0,0.00040821,9]
[405380343,1771098650827,-500.0,0.00040821,9]
[405380344,1771098650838,-500.0,0.00040821,9]
[405380345,1771098650848,-678.82,0.00040821,9]
[405380346,1771098650858,-500.0,0.00040821,9]
[405380347,1771098650867,-582.26,0.00040821,9]
[405380348,1771098650876,-500.0,0.00040821,9]
[405380349,1771098650885,-5058.13,0.00040821,9]
[405380350,1771098650896,-500.0,0.00040821,9]
[405380351,1771098650905,-500.0,0.00040821,9]
[405380352,1771098650914,-500.0,0.00040821,9]
[405380353,1771098650924,-500.0,0.00040821,9]
[405380354,1771098650934,-773.35,0.00040821,9]
[405380355,1771098650944,-1275.07,0.00040821,9]
[405380356,1771098650953,-347.45528171,0.00040821,9]
[405380357,1771098650963,-1430.59,0.00040821,15]
[405380358,1771098650973,-900.91,0.00040821,9]
[405380359,1771098650982,-500.0,0.00040821,9]
[405380360,1771098650991,-5038.38,0.00040821,9]
[405380361,1771098651002,-500.0,0.00040821,9]
[405380362,1771098651011,-500.0,0.00040821,9]
[405380363,1771098651020,-500.0,0.00040821,9]
[405380364,1771098651030,-568.05,0.00040821,9]
[405380365,1771098651039,-487.32715115,0.00040821,9]
[405380366,1771098651049,-500.0,0.00040821,9]
[405380367,1771098651059,-500.0,0.00040821,9]
[405380368,1771098651068,-6904.64,0.00040821,9]
[405380369,1771098651078,-500.0,0.00040821,9]
[405380370,1771098651087,-500.0,0.00040821,9]
[405380371,1771098651098,-500.0,0.00040821,9]
[405380372,1771098651107,-833.33,0.00040821,9]
[405380373,1771098651117,-500.0,0.00040821,15]
[405380374,1771098651127,-749.76,0.00040821,9]
[405380375,1771098651137,-500.0,0.00040821,9]
[405380376,1771098651147,-2211.69,0.00040821,9]
[405380377,1771098651157,-151.0,0.000409,120]
[405380378,1771098651166,-987.13937084,0.00041,2]
[405380379,1771098651176,-802.53784,0.00041015,30]
[405380380,1771098651186,-323.07692308,0.00041068,120]
[405380381,1771098651195,-276.92307692,0.00041068,120]
[405380382,1771098651205,-300.0,0.00041068,22]
[405380383,1771098651215,-500.0,0.00041095,90]
[405380384,1771098651224,-500.0,0.00041095,120]
[405380385,1771098651234,-500.0,0.00041095,120]
[405380386,1771098651243,-500.0,0.00041095,120]
[405380387,1771098651252,-500.0,0.00041095,120]
[405380388,1771098651262,-1740.85,0.00041095,120]
[405380389,1771098651271,-922.65,0.00041095,120]
[405380390,1771098651280,-500.0,0.00041095,120]
[405380391,1771098651290,-500.0,0.00041095,120]
[405380392,1771098651299,-500.0,0.00041095,120]
[405380393,1771098651308,-500.0,0.00041095,120]
[405380394,1771098651318,-500.0,0.00041095,120]
[405380395,1771098651328,-500.0,0.00041095,120]
[405380396,1771098651337,-686.0,0.00041095,120]
[405380397,1771098651346,-436.52492787,0.00041095,120]
[405380398,1771098651356,-500.0,0.00041095,120]
[405380399,1771098651365,-500.0,0.00041095,120]
[405380400,1771098651374,-500.0,0.00041095,120]
[405380401,1771098651383,-500.0,0.00041095,120]
[405380402,1771098651393,-500.0,0.00041095,120]
[405380403,1771098651402,-500.0,0.00041095,120]
[405380404,1771098651411,-500.0,0.00041095,120]
[405380405,1771098651421,-500.0,0.00041095,120]
[405380406,1771098651431,-500.0,0.00041095,120]
[405380407,1771098651441,-500.0,0.00041095,120]
[405380408,1771098651451,-500.0,0.00041095,120]
[405380409,1771098651461,-500.0,0.00041095,120]
[405380410,1771098651471,-500.0,0.00041095,120]
[405380411,1771098651481,-500.0,0.00041095,120]
[405380412,1771098651491,-1920.75,0.00041095,120]
[405380413,1771098651500,-775.99,0.00041095,120]
[405380414,1771098651510,-500.0,0.00041095,120]
[405380415,1771098651519,-834.29,0.00041095,120]
[405380416,1771098651529,-7114.09,0.00041095,120]
[405380417,1771098651538,-500.0,0.00041095,120]
[405380418,1771098651547,-181.48218435,0.00041095,120]
[405380419,1771098651556,-500.0,0.00041095,120]
[405380420,1771098651565,-500.0,0.00041095,9]